bitfinex-derivatives/quotes_SOLF0:USTF0_20250501
["timestamp","ask_amount","ask_price","bid_price","bid_amount"]
[1746142764451,4.20625605,150.3,150.26,6.6525]
[1746142764647,4.20625605,150.29,150.26,6.6525]
[1746142764848,4.20625605,150.28,150.26,6.6525]
[1746142765048,4.20625605,150.27,150.26,6.6525]
[1746142765857,4.20625605,150.27,150.25,6.653]
[1746142766049,4.20566201,150.26,150.25,6.653]
[1746142767154,4.20493996,150.26,150.25,6.653]
[1746142770754,6.6512,150.3,150.25,6.653]
[1746142770952,10.85365176,150.29,150.25,6.653]
[1746142771152,4.20205176,150.28,150.25,6.653]
[1746142771355,4.20205176,150.27,150.25,6.653]
[1746142771555,4.20205176,150.26,150.25,6.653]
[1746142778160,5.10187009,150.28,150.26,6.6527]
[1746142778362,4.19801861,150.27,150.26,6.6527]
[1746142779366,4.19801861,150.27,150.25,6.653]
[1746142779560,4.19801861,150.26,150.25,6.653]
[1746142780367,4.19801861,150.26,150.24,6.6534]
[1746142780664,4.19784043,150.25,150.24,6.6534]
[1746142781864,4.19797665,150.25,150.24,6.6534]
[1746142783566,4.19797665,150.25,150.23,6.6538]
[1746142783764,5.10187009,150.26,150.23,6.6538]
[1746142783967,4.19845795,150.25,150.23,6.6538]
[1746142784263,5.10187009,150.26,150.24,6.6536]
[1746142784458,4.19898265,150.25,150.24,6.6536]
[1746142786361,23.2,150.27,150.25,6.6529]
[1746142786556,4.19868335,150.26,150.25,6.6529]
[1746142786964,4.19868335,150.26,150.24,6.6534]
[1746142787267,23.2,150.27,150.22,5.10187009]
[1746142787467,4.19933436,150.26,150.22,5.10187009]
[1746142787670,4.19933436,150.25,150.24,6.6533]
[1746142789168,4.20109799,150.25,150.24,6.6533]
[1746142790067,6.6511,150.3,150.24,5.10187009]
[1746142790068,5.10187009,150.3,150.24,5.10187009]
[1746142790268,23.2,150.31,150.26,5.10187009]
[1746142790471,5.10187009,150.32,150.3,6.6508]
[1746142790669,28.30187009,150.34,150.28,5.10187009]
[1746142790970,4.20113283,150.33,150.28,5.10187009]
[1746142791163,4.20113283,150.32,150.28,5.10187009]
[1746142791464,4.20113283,150.31,150.28,5.10187009]
[1746142791664,4.20113283,150.3,150.29,6.6514]
[1746142792168,1.00093283,150.3,150.29,6.6514]
[1746142792371,384.30187009,150.35,150.28,28.30187009]
[1746142792966,384.30187009,150.35,150.32,6.6497]
[1746142793270,384.30187009,150.35,150.28,28.30187009]
[1746142793472,379.2,150.35,150.28,23.2]
[1746142793780,356.0,150.35,150.28,23.2]
[1746142794171,23.2,150.38,150.28,23.2]
[1746142794776,23.2,150.38,150.35,6.6485]
[1746142797675,23.2,150.38,150.34,6.649]
[1746142798075,23.2,150.38,150.28,23.2]
[1746142798264,23.2,150.38,150.29,7.96330638]
[1746142798470,7.96330638,150.39,150.29,7.96330638]
[1746142798669,25.1184,150.4,150.3,1.9571]
[1746142798982,25.1184,150.4,150.36,6.6481]
[1746142799276,25.1184,150.4,150.33,23.14]
[1746142799277,23.18,150.4,150.33,23.14]
[1746142800776,7.96330638,150.39,150.31,3.9841]
[1746142801180,23.18,150.4,150.31,3.9841]
[1746142802379,29.8268,150.4,150.35,6.6485]
[1746142803588,23.18,150.4,150.36,6.6483]
[1746142804267,4.09198241,150.39,150.36,6.6483]
[1746142804472,4.09198241,150.38,150.36,6.6483]
[1746142804667,23.18,150.4,150.36,6.6483]
[1746142804879,4.090454,150.39,150.36,6.6483]
[1746142805179,4.090454,150.38,150.36,6.6483]
[1746142805372,23.18,150.4,150.36,6.6483]
[1746142805573,4.08909242,150.39,150.36,6.6483]
[1746142805872,4.08909242,150.38,150.36,6.6483]
[1746142806072,23.18,150.4,150.36,6.6483]
[1746142806269,4.08909242,150.39,150.36,6.6483]
[1746142806467,23.18,150.4,150.36,6.6483]
[1746142806669,356.0,150.44,150.34,23.14]
[1746142806873,27.22786274,150.43,150.34,23.14]
[1746142807176,356.0,150.44,150.35,10.02230638]
[1746142807177,4.08786274,150.42,150.35,10.02230638]
[1746142807381,356.0,150.44,150.35,10.02230638]
[1746142807677,4.08534712,150.43,150.35,10.02230638]
[1746142807875,356.0,150.44,150.4,6.6462]
[1746142808075,4.08534813,150.43,150.4,6.6462]
[1746142808379,356.0,150.44,150.4,6.6462]
[1746142808571,4.08295084,150.43,150.4,6.6462]
[1746142808778,356.0,150.44,150.4,6.6462]
[1746142808973,4.08295085,150.43,150.4,6.6462]
[1746142809268,362.6449,150.44,150.4,6.6462]
[1746142810477,6.6453,150.43,150.39,6.6468]
[1746142810982,6.6461,150.41,150.38,23.14]
[1746142811181,7.96330638,150.42,150.35,23.14]
[1746142811382,23.14,150.41,150.35,23.14]
[1746142811582,6.647,150.39,150.36,6.6482]
[1746142811775,6.647,150.39,150.35,23.14]
[1746142812081,6.6472,150.39,150.35,29.7885]
[1746142812281,6.6472,150.39,150.35,6.6485]
[1746142812783,6.6477,150.38,150.35,6.6485]
[1746142813083,7.96330638,150.39,150.32,23.14]
[1746142813476,6.6483,150.37,150.34,6.6492]
[1746142816088,6.6483,150.37,150.35,6.6488]
[1746142816296,9.93890638,150.39,150.32,23.14]
[1746142816496,23.14,150.41,150.32,23.14]
[1746142816697,4.07820311,150.4,150.32,23.14]
[1746142816889,10.72530293,150.39,150.32,23.14]
[1746142817088,6.6471,150.39,150.32,23.14]
[1746142817285,23.14,150.41,150.35,6.6484]
[1746142817485,4.07836324,150.4,150.35,6.6484]
[1746142817684,6.6478,150.38,150.35,6.6484]
[1746142821101,6.6472,150.39,150.36,6.6482]
[1746142821598,23.14,150.41,150.36,6.6482]
[1746142821794,4.07904685,150.4,150.37,6.6478]
[1746142821997,7.96330638,150.42,150.32,23.14]
[1746142822200,33.86524746,150.41,150.32,23.14]
[1746142822402,4.07904853,150.4,150.32,31.10330638]
[1746142822704,2.0126,150.43,150.32,31.10330638]
[1746142822892,6.6454,150.43,150.32,31.10330638]
[1746142823096,6.6454,150.43,150.39,6.6467]
[1746142824604,6.6457,150.42,150.39,6.6467]
[1746142824807,6.6457,150.42,150.38,6.6472]
[1746142825001,379.14,150.44,150.38,6.6472]
[1746142825209,6.6464,150.41,150.36,23.14]
[1746142825408,6.6464,150.41,150.37,6.6475]
[1746142825708,6.6464,150.41,150.36,23.14]
[1746142826504,6.6464,150.41,150.38,6.6472]
[1746142827313,6.6459,150.42,150.39,6.6468]
[1746142827510,379.14,150.44,150.36,23.14]
[1746142827711,4.0820377,150.43,150.36,23.14]
[1746142827914,4.0820377,150.42,150.36,23.14]
[1746142828106,379.14,150.44,150.36,23.14]
[1746142828306,10.72743773,150.43,150.36,23.14]
[1746142828510,4.08203773,150.42,150.36,23.14]
[1746142828710,379.14,150.44,150.4,6.6463]
[1746142828911,4.08336751,150.43,150.4,6.6463]
[1746142829112,4.08336751,150.42,150.4,6.6463]
[1746142829414,379.14,150.44,150.39,6.6468]
[1746142829604,4.08489007,150.43,150.36,25.2727]
[1746142829807,6.6464,150.41,150.37,6.6477]
[1746142830100,379.14,150.44,150.36,23.14]
[1746142830517,6.6464,150.41,150.37,6.6476]
[1746142832018,6.6466,150.4,150.37,6.6476]
[1746142832317,379.14,150.44,150.37,6.6476]
[1746142832516,4.08941153,150.43,150.38,6.6474]
[1746142832718,6.6463,150.41,150.38,6.6474]
[1746142832909,4.08941153,150.4,150.38,6.6474]
[1746142833305,379.14,150.44,150.36,23.14]
[1746142833510,4.09532957,150.43,150.36,23.14]
[1746142833717,4.09532957,150.42,150.4,6.6463]
[1746142834015,4.09532957,150.41,150.4,6.6463]
[1746142834615,4.09532957,150.41,150.39,6.6468]
[1746142834817,4.09532957,150.4,150.39,6.6468]
[1746142835209,4.09532957,150.4,150.38,6.6473]
[1746142835405,4.09532957,150.39,150.36,23.14]
[1746142835604,6.6459,150.42,150.36,23.14]
[1746142835805,4.10018113,150.41,150.38,6.6472]
[1746142836015,4.10018113,150.4,150.38,6.6472]
[1746142836212,4.10018113,150.39,150.38,6.6472]
[1746142836416,10.74638113,150.41,150.38,6.6472]
[1746142836619,4.10018113,150.4,150.38,6.6472]
[1746142836922,4.10018113,150.39,150.38,6.6472]
[1746142838412,4.10466816,150.39,150.38,6.6472]
[1746142839221,4.10466816,150.39,150.37,6.6477]
[1746142839418,4.10547146,150.38,150.36,23.14]
[1746142839620,379.14,150.44,150.36,23.14]
[1746142839821,6.6469,150.4,150.36,29.7881]
[1746142840021,4.10547138,150.39,150.36,6.6481]
[1746142840322,4.10547138,150.38,150.36,6.6481]
[1746142840524,4.10609099,150.37,150.36,6.6481]
[1746142842320,4.10609099,150.37,150.33,23.2]
[1746142842528,4.10609099,150.36,150.33,23.2]
[1746142842721,6.6475,150.38,150.33,23.2]
[1746142842921,4.10750207,150.37,150.33,23.2]
[1746142843123,6.6475,150.38,150.34,6.6489]
[1746142843831,6.6475,150.38,150.35,6.6486]
[1746142845327,6.6479,150.37,150.35,6.6486]
[1746142846226,4.10766998,150.36,150.35,6.6486]
[1746142847524,4.10729537,150.36,150.35,6.6486]
[1746142849428,6.6475,150.38,150.35,6.6486]
[1746142850427,4.10679668,150.37,150.35,6.6486]
[1746142850729,4.10679668,150.36,150.35,6.6486]
[1746142851131,4.10657838,150.36,150.35,6.6486]
[1746142852938,6.6473,150.39,150.36,6.6482]
[1746142853230,4.10639584,150.38,150.36,6.6482]
[1746142853536,4.10639584,150.37,150.35,6.6485]
[1746142853832,4.10639584,150.36,150.35,6.6485]
[1746142854333,6.6473,150.39,150.35,6.6485]
[1746142855335,4.10712253,150.38,150.35,6.6485]
[1746142855529,4.10712253,150.37,150.35,6.6485]
[1746142855730,4.10712253,150.36,150.35,6.6485]
[1746142856633,4.10722651,150.36,150.35,6.6485]
[1746142860236,6.6473,150.39,150.35,6.6485]
[1746142860534,4.10745421,150.38,150.35,6.6485]
[1746142860730,4.10745421,150.37,150.35,6.6485]
[1746142860930,4.10745421,150.36,150.35,6.6485]
[1746142861431,23.2,150.4,150.37,6.6475]
[1746142861633,23.2,150.4,150.32,7.96330638]
[1746142862133,23.2,150.4,150.38,6.6472]
[1746142862728,4.1075085,150.39,150.38,6.6472]
[1746142864536,4.1075085,150.39,150.37,6.6477]
[1746142864728,4.1075085,150.38,150.37,6.6477]
[1746142865039,4.10770642,150.38,150.37,6.6477]
[1746142866937,4.10796093,150.38,150.37,6.6477]
[1746142868832,1.9933,150.46,150.35,7.96330638]
[1746142869038,4.10809436,150.43,150.36,4.1278]
[1746142869240,4.10809436,150.42,150.36,4.1278]
[1746142869426,4.10809436,150.41,150.36,4.1278]
[1746142869634,4.10809436,150.4,150.36,4.1278]
[1746142869833,29.7841,150.46,150.36,4.1278]
[1746142870033,4.10761471,150.43,150.36,4.1278]
[1746142870230,4.10761471,150.42,150.36,4.1278]
[1746142870437,4.10761471,150.41,150.36,4.1278]
[1746142870633,29.7841,150.46,150.41,6.6458]
[1746142870837,4.10693279,150.43,150.41,6.6458]
[1746142871038,4.10693279,150.42,150.41,6.6458]
[1746142872344,29.7841,150.46,150.42,6.6456]
[1746142872539,4.1061603,150.45,150.42,6.6456]
[1746142872735,4.1061603,150.44,150.42,6.6456]
[1746142872944,4.1061603,150.43,150.42,6.6456]
[1746142873250,23.14,150.46,150.42,6.6456]
[1746142873640,23.14,150.46,150.43,6.6451]
[1746142873840,7.96330638,150.48,150.4,1.9809]
[1746142874140,7.96330638,150.48,150.42,6.6456]
[1746142874445,4.10551853,150.47,150.4,1.9809]
[1746142874746,10.74971853,150.46,150.41,6.6459]
[1746142875045,4.10551853,150.45,150.41,6.6459]
[1746142875241,4.10551853,150.44,150.42,6.6455]
[1746142875543,4.10551853,150.43,150.42,6.6455]
[1746142878043,14.60640638,150.48,150.44,6.6446]
[1746142878243,4.10140386,150.47,150.44,6.6446]
[1746142878445,4.10140386,150.46,150.44,6.6446]
[1746142878748,29.7827,150.49,150.45,6.6443]
[1746142878942,4.09978036,150.48,150.45,6.6443]
[1746142879144,4.09978036,150.47,150.45,6.6443]
[1746142879442,4.09978036,150.46,150.45,6.6443]
[1746142879642,4.09778456,150.46,150.45,6.6443]
[1746142882148,29.7827,150.49,150.45,6.6443]
[1746142882445,4.09446713,150.48,150.45,6.6443]
[1746142882746,4.09446713,150.47,150.45,6.6443]
[1746142882946,29.7827,150.49,150.45,6.6443]
[1746142883150,4.09302875,150.48,150.45,6.6443]
[1746142883359,4.09302875,150.47,150.45,6.6443]
[1746142883549,4.09302875,150.46,150.44,6.6446]
[1746142883750,6.6431,150.48,150.44,6.6446]
[1746142883950,4.09203991,150.47,150.44,6.6446]
[1746142884152,4.09203991,150.46,150.45,6.6443]
[1746142884348,4.09203991,150.46,150.41,4.0728]
[1746142884548,6.6431,150.48,150.41,4.0728]
[1746142884852,6.6431,150.48,150.44,6.6445]
[1746142885048,6.6431,150.48,150.41,4.0728]
[1746142885541,4.09071996,150.47,150.41,4.0728]
[1746142885745,29.7828,150.49,150.41,4.0728]
[1746142886045,4.09028775,150.48,150.41,4.0728]
[1746142886245,4.09028775,150.47,150.45,6.6441]
[1746142886445,29.7828,150.49,150.45,6.6441]
[1746142886654,4.08965881,150.48,150.45,6.6441]
[1746142886853,4.08965881,150.47,150.45,6.6441]
[1746142887053,4.0896581,150.46,150.45,6.6441]
[1746142888162,29.7828,150.49,150.45,6.6441]
[1746142888359,4.08934349,150.48,150.45,6.6441]
[1746142888560,4.08934349,150.47,150.45,6.6441]
[1746142888759,29.7828,150.49,150.45,6.6441]
[1746142888961,4.08920798,150.48,150.45,6.6441]
[1746142889163,4.08920798,150.47,150.45,6.6441]
[1746142889461,29.7828,150.49,150.45,6.6441]
[1746142889658,4.08911448,150.48,150.46,6.6439]
[1746142889863,4.08911448,150.47,150.46,6.6439]
[1746142890464,29.7828,150.49,150.46,6.6439]
[1746142890665,4.08895691,150.48,150.46,6.6439]
[1746142890859,4.08895691,150.47,150.46,6.6439]
[1746142892358,4.08940557,150.48,150.46,6.6439]
[1746142892565,4.08940557,150.47,150.46,6.6439]
[1746142894170,4.08959438,150.48,150.46,6.6439]
[1746142894365,4.08959438,150.47,150.46,6.6439]
[1746142895966,4.09067774,150.47,150.46,6.6439]
[1746142898565,4.09314773,150.47,150.46,6.6439]
[1746142899167,362.6419,150.51,150.48,6.643]
[1746142899366,4.09314961,150.5,150.48,6.643]
[1746142899669,4.09314961,150.49,150.48,6.643]
[1746142899870,4.09314961,150.49,150.47,6.6431]
[1746142900068,4.09314961,150.48,150.47,6.6431]
[1746142901567,6.6422,150.5,150.47,6.6431]
[1746142901763,4.09483968,150.49,150.47,6.6431]
[1746142901963,4.09483968,150.48,150.47,6.6431]
[1746142903466,4.09733607,150.48,150.47,6.6431]
[1746142903670,4.09733607,150.49,150.47,6.6431]
[1746142903873,4.09733607,150.48,150.47,6.6431]
[1746142905271,5.0871058,150.5,150.47,6.6431]
[1746142905571,4.09911592,150.49,150.48,6.643]
[1746142906371,4.09911592,150.49,150.47,6.6433]
[1746142906573,4.09911592,150.48,150.47,6.6433]
[1746142909074,4.09993346,150.48,150.47,6.6433]
[1746142911073,4.09993346,150.48,150.47,6.6439]
[1746142912679,4.10492414,150.48,150.47,6.6439]
[1746142913077,4.10492414,150.48,150.43,252.86861555]
[1746142913274,4.10492414,150.47,150.43,252.86861555]
[1746142913476,4.10492414,150.46,150.43,252.86861555]
[1746142913777,356.0,150.51,150.43,252.86861555]
[1746142913977,4.10690633,150.5,150.43,252.86861555]
[1746142914180,4.10690633,150.49,150.43,252.86861555]
[1746142914375,4.10690633,150.48,150.43,252.86861555]
[1746142914677,4.10771506,150.47,150.43,252.86861555]
[1746142914874,4.10771506,150.46,150.43,252.86861555]
[1746142915181,356.0,150.51,150.43,252.86861555]
[1746142915473,4.10771524,150.5,150.43,252.86861555]
[1746142915674,4.10771524,150.49,150.43,252.86861555]
[1746142915876,356.0,150.51,150.43,252.86861555]
[1746142915877,4.10771524,150.48,150.43,252.86861555]
[1746142916080,4.10771524,150.47,150.43,252.86861555]
[1746142916279,362.6418,150.51,150.43,252.86861555]
[1746142916480,4.10853224,150.5,150.43,252.86861555]
[1746142916780,4.10853224,150.49,150.43,252.86861555]
[1746142916977,4.10853224,150.48,150.43,252.86861555]
[1746142917274,4.10853224,150.47,150.43,252.86861555]
[1746142917480,4.10853224,150.46,150.44,6.6445]
[1746142917676,4.10853224,150.45,150.44,6.6445]
[1746142918069,362.6419,150.51,150.44,6.6445]
[1746142918277,10.75321867,150.5,150.45,6.6443]
[1746142918576,4.11071867,150.49,150.43,252.86861555]
[1746142918771,6.6439,150.47,150.43,252.86861555]
[1746142919081,4.11071867,150.46,150.43,252.86861555]
[1746142919282,4.11071867,150.45,150.43,252.86861555]
[1746142919476,4.11071867,150.44,150.43,252.86861555]
[1746142919777,366.00744145,150.51,150.43,252.86861555]
[1746142919978,6.6446,150.45,150.43,252.86861555]
[1746142921082,4.11211629,150.44,150.43,252.86861555]
[1746142921382,4.1121163,150.44,150.43,252.86861555]
[1746142922685,4.1121163,150.44,150.43,259.51381555]
[1746142922889,4.11326388,150.44,150.43,252.86861555]
[1746142923686,4.11326388,150.44,150.43,259.51381555]
[1746142923885,366.00744145,150.51,150.43,252.86861555]
[1746142924586,6.6427,150.49,150.46,6.6438]
[1746142925184,366.00744145,150.51,150.43,252.86861555]
[1746142925588,5.08930889,150.47,150.43,252.86861555]
[1746142925775,5.08930889,150.47,150.44,6.6445]
[1746142925776,11.73310889,150.47,150.44,6.6445]
[1746142926491,6.644,150.46,150.44,6.6445]
[1746142926781,5.08930889,150.45,150.4,23.1]
[1746142927086,11.73400889,150.45,150.4,23.1]
[1746142927273,11.73400889,150.45,150.41,6.6459]
[1746142927475,6.6447,150.45,150.4,23.1]
[1746142928091,6.6447,150.45,150.42,6.6453]
[1746142929091,6.6441,150.46,150.43,6.6451]
[1746142929291,23.1,150.48,150.4,23.1]
[1746142929488,23.1,150.48,150.41,2.0201]
[1746142929792,29.7433,150.48,150.45,6.6441]
[1746142930392,6.6435,150.47,150.45,6.6441]
[1746142931995,29.7432,150.48,150.45,6.6441]
[1746142932188,366.01350113,150.51,150.41,2.0201]
[1746142932395,381.1797,150.51,150.42,7.95380113]
[1746142932591,387.8217,150.51,150.42,9.87340113]
[1746142932786,387.8217,150.51,150.48,6.6426]
[1746142934195,387.8217,150.51,150.49,6.6426]
[1746142935499,7.95380113,150.54,150.44,23.12]
[1746142935788,23.12,150.53,150.45,9.92250113]
[1746142935996,4.01605683,150.52,150.46,2.04]
[1746142936195,4.01605683,150.51,150.46,2.04]
[1746142936391,4.01605683,150.5,150.46,2.04]
[1746142936597,387.8095,150.56,150.52,6.6411]
[1746142936797,4.01504911,150.55,150.52,6.6411]
[1746142936985,4.01504911,150.54,150.52,6.6411]
[1746142937297,4.01366636,150.53,150.52,6.6411]
[1746142938399,4.01366636,150.53,150.51,6.6415]
[1746142938602,4.01366636,150.52,150.51,6.6415]
[1746142940998,4.00926894,150.52,150.51,6.6415]
[1746142943095,6.64,150.55,150.51,6.6415]
[1746142943392,4.00629335,150.54,150.51,6.6415]
[1746142943699,4.00629335,150.53,150.48,23.12]
[1746142943902,4.00629335,150.52,150.48,23.12]
[1746142944091,379.12,150.56,150.48,23.12]
[1746142944292,6.6407,150.54,150.49,6.6423]
[1746142944490,379.12,150.56,150.48,23.12]
[1746142944698,379.12,150.56,150.49,6.6426]
[1746142945201,6.6412,150.53,150.49,6.6426]
[1746142945402,4.00552152,150.52,150.49,6.6426]
[1746142945701,4.00552152,150.51,150.49,6.6426]
[1746142945898,4.00552152,150.5,150.49,6.6426]
[1746142954100,6.6401,150.55,150.51,6.6416]
[1746142954301,4.0046723,150.54,150.51,6.6416]
[1746142954500,4.0046723,150.53,150.51,6.6416]
[1746142954703,4.0046723,150.52,150.51,6.6416]
[1746142955411,4.0046723,150.52,150.46,9.99380113]
[1746142955708,6.6402,150.55,150.5,6.6417]
[1746142956006,4.00416396,150.54,150.5,6.6417]
[1746142956210,4.00416396,150.53,150.46,9.99380113]
[1746142956404,4.00416396,150.52,150.51,6.6417]
[1746142956608,4.00387552,150.52,150.51,6.6417]
[1746142957416,4.00365018,150.52,150.51,6.6417]
[1746142958708,4.00344254,150.52,150.51,6.6417]
[1746142959303,4.00347779,150.52,150.51,6.6417]
[1746142960004,2.0839,150.58,150.49,23.1]
[1746142960209,4.00325062,150.57,150.49,23.1]
[1746142960509,4.00325062,150.56,150.49,23.1]
[1746142960703,4.00325062,150.55,150.54,6.64]
[1746142961209,8.7226,150.58,150.54,6.64]
[1746142961611,2.0839,150.58,150.53,6.6407]
[1746142962009,4.00239193,150.57,150.49,23.1]
[1746142962209,4.00239193,150.56,150.54,6.6403]
[1746142962403,4.00239193,150.55,150.54,6.6403]
[1746142962908,4.00179244,150.55,150.54,6.6403]
[1746142964406,6.6387,150.58,150.54,6.6403]
[1746142964604,4.00064505,150.57,150.55,6.6398]
[1746142964804,4.00064505,150.56,150.55,6.6398]
[1746142968127,23.1,150.59,150.56,6.6392]
[1746142968334,3.99926701,150.58,150.56,6.6392]
[1746142968518,3.99926701,150.57,150.56,6.6392]
[1746142970025,3.99926701,150.57,150.55,6.6398]
[1746142970226,23.1,150.59,150.53,23.1]
[1746142970525,3.99903639,150.58,150.53,23.1]
[1746142970726,3.99903639,150.57,150.56,6.6395]
[1746142971027,23.1,150.59,150.53,23.1]
[1746142971226,3.99903046,150.58,150.53,23.1]
[1746142971421,23.1,150.59,150.57,6.639]
[1746142971625,3.99889633,150.58,150.57,6.639]
[1746142972028,3.99889596,150.58,150.57,6.639]
[1746142972224,6.6378,150.6,150.57,6.639]
[1746142972523,3.99914558,150.59,150.57,6.639]
[1746142972826,3.99914727,150.58,150.57,6.639]
[1746142973026,6.6378,150.6,150.57,6.639]
[1746142973228,3.99914558,150.59,150.57,6.639]
[1746142973426,3.99914558,150.58,150.57,6.639]
[1746142973820,3.99990732,150.58,150.57,6.639]
[1746142977529,379.1,150.62,150.53,23.1]
[1746142977726,4.00230995,150.61,150.53,23.1]
[1746142977929,4.00230995,150.6,150.53,23.1]
[1746142978228,23.1,150.62,150.53,23.1]
[1746142978229,4.00230995,150.59,150.53,23.1]
[1746142978426,18.57120113,150.64,150.53,23.1]
[1746142978631,4.00202931,150.63,150.53,23.1]
[1746142978929,4.00202931,150.62,150.55,7.95380113]
[1746142979125,4.00202931,150.61,150.56,4.187]
[1746142979327,10.6173,150.64,150.6,6.6375]
[1746142979524,4.00115781,150.63,150.6,6.6375]
[1746142979725,4.00115781,150.62,150.59,6.638]
[1746142980030,4.00115781,150.61,150.57,23.1]
[1746142980229,4.00115781,150.6,150.57,23.1]
[1746142980426,4.0016409,150.59,150.57,29.7387]
[1746142980627,6.6375,150.61,150.57,29.7387]
[1746142980822,4.00164148,150.6,150.57,29.7387]
[1746142981026,4.00164148,150.59,150.57,29.7387]
[1746142981229,6.6375,150.61,150.57,29.7387]
[1746142981525,4.00162593,150.6,150.57,29.7387]
[1746142981720,4.00162593,150.59,150.57,29.7387]
[1746142981924,6.6375,150.61,150.58,6.6386]
[1746142982229,4.00107265,150.6,150.58,6.6386]
[1746142982425,6.6375,150.61,150.58,6.6386]
[1746142982628,4.00031863,150.6,150.58,6.6386]
[1746142982824,6.6375,150.61,150.58,6.6386]
[1746142983026,4.00031863,150.6,150.58,6.6386]
[1746142983228,6.6375,150.61,150.58,6.6386]
[1746142983427,4.00006398,150.6,150.58,6.6386]
[1746142983631,6.6375,150.61,150.58,6.6386]
[1746142984234,3.99929426,150.6,150.58,6.6386]
[1746142984427,6.6375,150.61,150.58,6.6386]
[1746142984627,3.99876947,150.6,150.57,23.1]
[1746142984827,11.93500113,150.64,150.53,23.1]
[1746142985031,7.95380113,150.61,150.53,23.1]
[1746142985229,31.05380113,150.61,150.5,25.1135]
[1746142985432,1.9842,150.6,150.5,25.1135]
[1746142985831,6.6398,150.56,150.53,6.6406]
[1746142986228,6.6398,150.56,150.54,6.6403]
[1746142986429,29.7392,150.57,150.54,6.6403]
[1746142986628,3.99824997,150.56,150.54,6.6403]
[1746142986828,29.7392,150.57,150.54,6.6403]
[1746142989035,3.99767467,150.56,150.54,6.6403]
[1746142989236,29.7392,150.57,150.54,6.6403]
[1746142989535,3.99744878,150.56,150.54,6.6403]
[1746142989833,29.7392,150.57,150.54,6.6403]
[1746142990035,3.99744835,150.56,150.54,6.6403]
[1746142990236,29.7392,150.57,150.54,6.6403]
[1746142990536,3.99808575,150.56,150.54,6.6403]
[1746142990734,29.7392,150.57,150.54,6.6403]
[1746142990936,3.99808575,150.56,150.54,6.6403]
[1746142991137,29.7392,150.57,150.54,6.6403]
[1746142991336,3.99846343,150.56,150.54,6.6403]
[1746142991528,3.99846343,150.55,150.54,6.6403]
[1746142991727,3.99846343,150.56,150.54,6.6403]
[1746142991925,3.99846343,150.55,150.54,6.6403]
[1746142992132,3.99846343,150.56,150.54,6.6403]
[1746142992737,29.7392,150.57,150.54,6.6403]
[1746142993636,4.00014222,150.56,150.54,6.6403]
[1746142993837,4.00014222,150.55,150.54,6.6403]
[1746142994426,4.00014222,150.56,150.54,6.6403]
[1746142994635,4.00136473,150.55,150.54,6.6403]
[1746142995137,4.00136415,150.55,150.54,6.6403]
[1746142996334,29.7392,150.57,150.54,6.6403]
[1746142996541,4.00332931,150.56,150.54,6.6403]
[1746142997441,4.00332931,150.55,150.52,6.6408]
[1746142997630,23.1,150.57,150.52,6.6408]
[1746142997832,4.00456013,150.56,150.52,6.6408]
[1746142998043,4.00456013,150.55,150.51,6.6414]
[1746142998237,4.00456013,150.54,150.51,6.6414]
[1746142998442,31.05380113,150.57,150.51,6.6414]
[1746142998643,6.6403,150.55,150.52,6.6412]
[1746142999444,4.00627885,150.54,150.52,6.6412]
[1746142999644,6.6403,150.55,150.52,6.6412]
[1746142999844,4.00645067,150.54,150.52,6.6412]
[1746143000045,6.6403,150.55,150.52,6.6412]
[1746143000241,4.00698594,150.54,150.52,6.6412]
[1746143000543,6.6403,150.55,150.52,6.6412]
[1746143000746,4.0071263,150.54,150.52,6.6412]
[1746143000944,6.6403,150.55,150.52,6.6412]
[1746143001244,4.0071263,150.54,150.52,6.6412]
[1746143001546,6.6403,150.55,150.52,6.6412]
[1746143001742,4.00776705,150.54,150.52,6.6412]
[1746143001944,6.6403,150.55,150.52,6.6412]